fUST/lending_fUST_20240122
["ID","MTS","AMOUNT","RATE_DAILY","PERIOD"]
[312496444,1705932638762,-470.67463112,0.0001053,2]
[312496446,1705932638772,-165.439714,0.00010536,2]
[312496448,1705932638782,-309.84507746,0.00010631,2]
[312496450,1705932638791,-2073.9279871,0.00010631,2]
[312496452,1705932638800,-180.71261798,0.00010634,2]
[312496454,1705932638809,-2103.40493137,0.00010635,2]
[312496456,1705932638819,-2752.45295452,0.00010639,2]
[312496458,1705932638828,-243.66667481,0.00010744,2]
[312496460,1705932638838,-16657.46534458,0.00010764,2]
[312496462,1705932638848,-276.81672398,0.0001077,2]
[312496464,1705932638856,-155.30499422,0.0001077,2]
[312496466,1705932638865,-198.38520512,0.00010771,2]
[312496468,1705932638874,-1294.27151942,0.00010771,2]
[312496470,1705932638883,-15987.38256896,0.00010774,2]
[312496472,1705932638892,-154.95351395,0.00010885,2]
[312496474,1705932638901,-154.95351395,0.00010886,2]
[312496476,1705932638910,-154.95351395,0.00010886,2]
[312496478,1705932638919,-154.95351395,0.00010886,2]
[312496480,1705932638928,-2836.67729407,0.00010886,2]
[312496482,1705932638937,-307.60539626,0.00010997,2]
[312496484,1705932638946,-563.75465003,0.00010997,2]
[312496486,1705932638956,-176.33707755,0.00010997,2]
[312496488,1705932638965,-155.76848449,0.00010997,2]
[312496490,1705932638974,-302.84435405,0.00010997,2]
[312496491,1705932638983,-3024.16310446,0.00010997,2]
[312496493,1705932638992,-203.91764737,0.00010997,2]
[312496495,1705932639002,-155.09769188,0.00010997,2]
[312496497,1705932639011,-215.98200691,0.00010997,2]
[312496499,1705932639020,-304.11749921,0.00010997,2]
[312496501,1705932639029,-262.0085084,0.00010997,2]
[312496503,1705932639038,-200.81357987,0.00010997,2]
[312496505,1705932639047,-200.0,0.00010997,2]
[312496507,1705932639056,-156.33928042,0.00010997,2]
[312496509,1705932639065,-258.88009432,0.00010997,2]
[312496511,1705932639075,-309.5529275,0.00010997,2]
[312496513,1705932639084,-176.80344435,0.00010997,2]
[312496515,1705932639093,-1816.48615871,0.00010999,2]
[312496517,1705932639103,-294.57701565,0.00010999,2]
[312496519,1705932639113,-27575.42293718,0.00010999,2]
[312496521,1705932639122,-309.51610563,0.00010999,2]
[312496523,1705932639130,-193.50366925,0.00010999,2]
[312496525,1705932639139,-298.40677269,0.00010999,2]
[312496527,1705932639148,-158.96191588,0.00010999,2]
[312496529,1705932639157,-156.45218725,0.00010999,2]
[312496531,1705932639166,-301.40690811,0.00010999,2]
[312496533,1705932639175,-156.06983439,0.00010999,2]
[312496534,1705932639184,-155.501055,0.00010999,2]
[312496536,1705932639193,-226.39153408,0.00010999,2]
[312496538,1705932639202,-14169.05870995,0.00010999,2]
[312496540,1705932639211,-155.25728071,0.00010999,2]
[312496542,1705932639220,-251.17115687,0.00010999,2]
[312496544,1705932639229,-157.90368326,0.00010999,2]
[312496546,1705932639238,-11033.00619666,0.00010999,2]
[312496548,1705932639247,-282.68327169,0.00010999,2]
[312496564,1705932639383,-160.36108711,0.00010999,2]
[312496566,1705932639392,-174.866365,0.00010999,2]
[312496569,1705932639412,-154.98478343,0.00010999,2]
[312496571,1705932639423,-161.06319152,0.00010999,2]
[312496573,1705932639433,-284.91977325,0.00011,2]
[312496575,1705932639443,-302.26715568,0.00011,2]
[312496577,1705932639453,-717.87855848,0.00011025,2]
[312496579,1705932639464,-215.305733,0.00011222,2]
[312496581,1705932639474,-999.50024988,0.00011539,2]
[312496583,1705932639484,-200.0,0.00011804,2]
[312496585,1705932639494,-155.46165684,0.000129,2]
[312496587,1705932639503,-280.0,0.00012984,2]
[312496589,1705932639512,-154.95351395,0.0001369,2]
[312496591,1705932639523,-1000.0,0.00013698,2]
[312496593,1705932639533,-658.01913901,0.00013698,2]
[312496595,1705932639543,-1507.6392133,0.00013698,2]
[312496597,1705932639557,-2037.621781,0.00013699,2]
[312496599,1705932639566,-270.6612929,0.00013699,2]
[312496601,1705932639576,-3000.0,0.00013699,2]
[312496603,1705932639587,-224.31517419,0.000137,2]
[312496605,1705932639597,-391.0,0.00014283,2]
[312496607,1705932639606,-2752.45295448,0.00014803,2]
[312496609,1705932639616,-760.47051245,0.00014911,2]
[312496611,1705932639628,-1266.7890629,0.00015,2]
[312496613,1705932639637,-154.95351395,0.00015,2]
[312496615,1705932639646,-687.96014716,0.00015,2]
[312496617,1705932639657,-2706.76932127,0.00015,2]
[312496619,1705932639666,-154.95351395,0.00015,2]
[312496621,1705932639675,-154.95351395,0.00015,2]
[312496623,1705932639685,-200.0,0.00015711,2]
[312496625,1705932639695,-348.0,0.00015711,2]
[312496627,1705932639705,-4601.70026111,0.00015999,2]
[312496629,1705932639714,-4580.55992462,0.0001631,2]
[312496632,1705932639725,-272.55691777,0.000165,2]
[312496633,1705932639734,-874.37604694,0.00017235,2]
[312496635,1705932639744,-200.0,0.00017282,2]
[312496637,1705932639754,-200.0,0.00017282,2]
[312496639,1705932639763,-368.0,0.00017282,2]
[312496641,1705932639773,-10537.96841435,0.00017898,2]
[312496643,1705932639782,-2752.45295448,0.00018968,2]
[312496645,1705932639792,-1582.38308236,0.00019,2]
[312496647,1705932639802,-200.0,0.00019011,2]
[312496649,1705932639811,-200.0,0.00019011,2]
[312496651,1705932639823,-200.0,0.00019011,2]
[312496653,1705932639832,-200.0,0.00019011,2]
[312496655,1705932639842,-275.0,0.00019011,2]
[312496658,1705932639851,-167.784361,0.00019178,2]
[312496661,1705932639861,-166.108261,0.00019178,2]
[312496663,1705932639871,-1114.53942019,0.000195,2]
[312496666,1705932639880,-2134.35553655,0.0002,5]
[312496669,1705932639890,-154.95351395,0.0002,2]
[312496671,1705932639899,-177.94716191,0.0002,2]
[312496673,1705932639909,-154.95351395,0.0002,2]
[312496675,1705932639918,-667.24083957,0.0002,2]
[312496677,1705932639928,-678.6288756,0.0002,2]
[312496679,1705932639938,-154.95351395,0.0002,2]
[312496681,1705932639947,-323.13003236,0.0002,2]
[312496683,1705932639956,-850.30063575,0.0002,2]
[312496685,1705932639965,-1197.97622761,0.0002,2]
[312496687,1705932639975,-154.95351395,0.0002,2]
[312496689,1705932639984,-155.66697436,0.0002,2]
[312496691,1705932639994,-177.14198927,0.0002,2]
[312496693,1705932640003,-154.95351395,0.0002,2]
[312496695,1705932640014,-190.6950884,0.0002,2]
[312496697,1705932640024,-200.0,0.0002,2]
[312496699,1705932640034,-151.45456969,0.0002,2]
[312496701,1705932640044,-2037.621781,0.00020548,2]
[312496703,1705932640054,-154.95351395,0.00020999,2]
[312496705,1705932640066,-232.97414454,0.00021,2]
[312496707,1705932640081,-327.51224259,0.00021,2]
[312496708,1705932640091,-8289.76804343,0.00021,2]
[312496710,1705932640101,-394.7881014,0.00021917,2]
[312496712,1705932640111,-166.666666,0.00021918,2]
[312496714,1705932640123,-293.4468762,0.00022,4]
[312496716,1705932640133,-3968.39951784,0.00022,2]
[312496718,1705932640143,-425.98515357,0.00022,2]
[312496720,1705932640152,-9060.45794745,0.00022221,2]
[312496722,1705932640162,-166.666666,0.00022431,2]
[312496724,1705932640171,-166.666666,0.00022944,2]
[312496726,1705932640181,-1571.50470749,0.00023,2]
[312496728,1705932640191,-2752.45295448,0.00023132,2]
[312496730,1705932640201,-166.666666,0.00023456,2]
[312496732,1705932640210,-166.666666,0.00023969,2]
[312496734,1705932640220,-4014.03339386,0.00024,2]
[312496736,1705932640230,-159.76898313,0.000243,2]
[312496738,1705932640240,-166.666666,0.00024482,2]
[312496740,1705932640249,-1000.0,0.00024657,2]
[312496742,1705932640258,-1000.0,0.00024657,2]
[312496744,1705932640267,-421.46347451,0.00024657,2]
[312496746,1705932640276,-380.0,0.00024658,2]
[312496747,1705932640285,-200.0,0.00024658,2]
[312496749,1705932640294,-824.33300328,0.000247,2]
[312496751,1705932640304,-498.88477678,0.0002496,5]
[312496753,1705932640312,-763.99864371,0.00025,2]
[312496755,1705932640326,-679.71377977,0.00025,2]
[312496757,1705932640336,-4723.24260277,0.00025,2]
[312496759,1705932640345,-154.95351395,0.00025,2]
[312496761,1705932640355,-154.95351395,0.00025,2]
[312496763,1705932640365,-7381.29040931,0.00025,2]
[312496765,1705932640377,-1500.40236428,0.00025,2]
[312496767,1705932640386,-14739.84371486,0.00025,10]
[312496768,1705932640395,-25330.29672088,0.00025,2]
[312496769,1705932640404,-1002.17175487,0.00025,2]
[312496770,1705932640413,-155.376373,0.00025,2]
[312496771,1705932640422,-209.84243657,0.00025,2]
[312496772,1705932640430,-154.95351395,0.00025,2]
[312496773,1705932640439,-1007.29215616,0.00025,2]
[312496774,1705932640448,-999.60015994,0.00025054,2]
[312496775,1705932640458,-9286.90575802,0.00025297,2]
[312496776,1705932640466,-200.0,0.00025479,2]
[312496777,1705932640476,-241.24702868,0.00026,2]
[312496778,1705932640485,-4010.37580387,0.00026,2]
[312496779,1705932640494,-10000.0,0.00027,3]
[312496780,1705932640503,-2752.45295448,0.00027296,2]
[312496781,1705932640512,-2807.0,0.0002737,2]
[312496782,1705932640521,-155.22856218,0.00027393,2]
[312496783,1705932640531,-229.61019402,0.00027394,2]
[312496785,1705932640540,-500.0,0.00027395,2]
[312496787,1705932640552,-500.0,0.00027395,2]
[312496789,1705932640561,-500.0,0.00027395,2]
[312496791,1705932640573,-500.0,0.00027395,2]
[312496792,1705932640582,-500.0,0.00027395,2]
[312496793,1705932640591,-500.3098765,0.00027395,2]
[312496794,1705932640602,-500.0,0.00027395,2]
[312496795,1705932640611,-500.0,0.00027395,2]
[312496796,1705932640620,-601.01864947,0.00027395,2]
[312496797,1705932640630,-500.0,0.00027395,2]
[312496798,1705932640640,-500.0,0.00027395,2]
[312496799,1705932640649,-381.16701844,0.00027395,2]
[312496800,1705932640658,-500.0,0.00027395,2]
[312496802,1705932640666,-500.0,0.00027395,2]
[312496803,1705932640676,-500.0,0.00027395,2]
[312496804,1705932640686,-500.0,0.00027395,2]
[312496805,1705932640695,-423.09940333,0.00027395,2]
[312496807,1705932640705,-500.0,0.00027395,2]
[312496809,1705932640714,-500.0,0.00027395,2]
[312496811,1705932640723,-500.0,0.00027395,2]
[312496813,1705932640732,-167.44246057,0.00027395,2]
[312496815,1705932640741,-500.0,0.00027395,2]
[312496817,1705932640751,-500.0,0.00027395,2]
[312496819,1705932640761,-500.0,0.00027395,2]
[312496821,1705932640770,-500.0,0.00027395,2]
[312496823,1705932640780,-500.0,0.00027395,2]
[312496825,1705932640789,-500.0,0.00027395,2]
[312496827,1705932640799,-500.0,0.00027395,2]
[312496829,1705932640808,-500.0,0.00027395,2]
[312496831,1705932640818,-500.0,0.00027395,2]
[312496833,1705932640828,-190.58350921,0.00027395,2]
[312496835,1705932640837,-500.0,0.00027395,2]
[312496837,1705932640846,-500.0,0.00027395,2]
[312496839,1705932640856,-643.98421342,0.00027395,2]
[312496841,1705932640866,-500.0,0.00027395,2]
[312496843,1705932640875,-500.0,0.00027395,2]
[312496845,1705932640885,-500.0,0.00027395,2]
[312496847,1705932640894,-500.0,0.00027395,2]
[312496849,1705932640904,-500.0,0.00027395,2]
[312496851,1705932640914,-500.0,0.00027395,2]
[312496853,1705932640923,-500.0,0.00027395,2]
[312496855,1705932640933,-500.0,0.00027395,2]
[312496857,1705932640944,-500.0,0.00027395,2]
[312496859,1705932640953,-500.0,0.00027395,2]
[312496861,1705932640963,-500.0,0.00027395,2]
[312496863,1705932640972,-500.0,0.00027395,2]
[312496865,1705932640982,-235.18737073,0.00027395,2]
[312496867,1705932640992,-548.73293555,0.00027395,2]
[312496869,1705932641002,-500.0,0.00027395,2]
[312496871,1705932641011,-500.0,0.00027395,2]
[312496873,1705932641021,-500.0,0.00027395,2]
[312496875,1705932641031,-220.77801229,0.00027395,2]
[312496877,1705932641040,-583.59156375,0.00027395,2]
[312496879,1705932641049,-500.0,0.00027395,2]
[312496881,1705932641058,-167.51554122,0.00027395,2]
[312496883,1705932641069,-500.0,0.00027395,2]
[312496885,1705932641078,-500.0,0.00027395,2]
[312496887,1705932641087,-500.0,0.00027395,2]
[312496888,1705932641096,-500.00000001,0.00027395,2]
[312496891,1705932641105,-161.96344309,0.00027395,2]
[312496893,1705932641115,-231.37634728,0.00027395,2]
[312496895,1705932641125,-203.53551992,0.00027395,2]
[312496897,1705932641134,-474.91621314,0.00027395,2]
[312496899,1705932641143,-377.91470056,0.00027395,2]
[312496901,1705932641152,-284227.95491571,0.00027396,7]
[312496903,1705932641161,-300.0,0.00027396,2]
[312496905,1705932641170,-2084.29033128,0.00027396,2]
[312496906,1705932641179,-1466.40814531,0.00027396,2]
[312496908,1705932641188,-154.95351395,0.00027396,2]
[312496910,1705932641198,-3504.81302219,0.00027396,2]
[312496913,1705932641208,-763.99864371,0.00027396,2]
[312496915,1705932641217,-175.35139766,0.00027396,2]
[312496916,1705932641228,-500.0,0.00027396,4]
[312496919,1705932641237,-362.76630207,0.00027396,4]
[312496921,1705932641249,-500.0,0.00027396,4]
[312496923,1705932641258,-500.0,0.00027396,4]
[312496925,1705932641267,-500.0,0.00027396,4]
[312496926,1705932641276,-500.0,0.00027396,4]
[312496928,1705932641286,-266.57268663,0.00027396,4]
[312496930,1705932641295,-500.0,0.00027396,4]
[312496932,1705932641305,-500.0,0.00027396,4]
[312496934,1705932641314,-500.0,0.00027396,4]
[312496936,1705932641327,-500.0,0.00027396,4]
[312496938,1705932641337,-500.0,0.00027396,4]
[312496940,1705932641347,-500.0,0.00027396,4]
[312496942,1705932641356,-500.0,0.00027396,4]
[312496944,1705932641366,-500.0,0.00027396,4]
[312496946,1705932641376,-500.0,0.00027396,4]
[312496948,1705932641385,-500.0,0.00027396,4]
[312496950,1705932641395,-500.0,0.00027396,4]
[312496952,1705932641404,-500.0,0.00027396,4]
[312496954,1705932641413,-207.76209246,0.00027396,4]
[312496956,1705932641422,-500.0,0.00027396,4]
[312496958,1705932641431,-500.0,0.00027396,4]
[312496960,1705932641441,-500.0,0.00027396,4]
[312496962,1705932641451,-500.0,0.00027396,4]
[312496964,1705932641461,-500.0,0.00027396,4]
[312496966,1705932641470,-500.0,0.00027396,4]
[312496968,1705932641480,-500.0,0.00027396,4]
[312496970,1705932641489,-500.0,0.00027396,4]
[312496972,1705932641499,-298.50792993,0.00027396,4]
[312496974,1705932641508,-500.0,0.00027396,4]
[312496976,1705932641518,-500.0,0.00027396,4]
[312496978,1705932641527,-500.0,0.00027396,4]
[312496980,1705932641537,-338.45435804,0.00027396,4]
[312497003,1705932641754,-500.0,0.00027396,4]
[312497005,1705932641764,-500.0,0.00027396,4]
[312497007,1705932641773,-500.0,0.00027396,4]
[312497009,1705932641783,-500.0,0.00027396,4]
[312497011,1705932641792,-155.0,0.00027397,2]
[312497013,1705932641801,-500.0,0.00027397,2]
[312497015,1705932641810,-400.0,0.00027397,2]
[312497016,1705932641821,-15985.89,0.00027397,3]
[312497019,1705932641830,-30484.03,0.00027397,3]
[312497021,1705932641840,-25403.36,0.00027397,3]
[312497023,1705932641849,-21169.47,0.00027397,3]
[312497024,1705932641859,-261.58936724,0.000274,2]
[312497026,1705932641868,-500.0,0.00027534,2]
[312497029,1705932641878,-500.0,0.00027671,2]
[312497030,1705932641887,-9121.34550853,0.0002775,4]
[312497032,1705932641897,-500.0,0.00027808,2]
[312497035,1705932641906,-557056.53309431,0.000279,2]
[312497037,1705932641922,-10202.84952288,0.000279,2]
[312497039,1705932641933,-7914.50412191,0.000279,2]
[312497052,1705932642043,-1385.63982187,0.000279,2]
[312497057,1705932642201,-26869.92029023,0.000279,2]
[312497092,1705932643768,-522.11697668,0.00013698,2]
[312497093,1705932643777,-262.3367316,0.00013698,2]
[312497094,1705932643787,-1048.68582221,0.00027385,2]
[312497095,1705932643796,-2330.6232237,0.00027386,3]
[312497096,1705932643807,-980.91267131,0.00027386,3]
[312497097,1705932643819,-2435.13655299,0.00027386,3]
[312497098,1705932643880,-298.60304897,0.00027385,2]
[312497099,1705932643889,-3661.15588281,0.00027386,3]
[312497155,1705932646740,-0.481906,0.00013698,2]
[312497223,1705933058688,-745.2611022,0.00010164,2]
[312497224,1705933058777,-15.20941025,0.00010164,2]
[312497225,1705933063134,-858.864054,0.00010163,2]
[312497226,1705933063273,-17.52783784,0.00010163,2]
[312497227,1705933063334,841.33621616,0.00010163,2]
[312497228,1705933063409,-412.08247196,0.00010163,2]
[312497229,1705933063665,446.78158204,0.00010163,2]
[312497230,1705933063698,-233.31958558,0.00010163,2]
[312497231,1705933064981,170.52123694,0.00010163,2]
[312497232,1705933065005,403.84082252,0.00010163,2]
[312497233,1705933065308,-20.77515976,0.00010163,2]
[312497234,1705933092407,1468.66343637,0.0001,2]
[312497236,1705933121507,24900.0,9.952e-05,2]
[312497239,1705933324690,280.0,0.00021095,7]
[312497240,1705933409990,473.4243788,9.817e-05,2]
[312497241,1705933550370,760.76957335,0.0001,2]
[312497242,1705933557604,24900.0,9.796e-05,2]
[312497243,1705933574042,10000.0,0.00029,30]
[312497254,1705933754003,-3108.66376201,0.00010358,2]
[312497255,1705933754215,-63.44211759,0.00010358,2]
[312497258,1705933813596,-154.95351395,0.00010462,2]
[312497259,1705933813620,-155.83065466,0.00010462,2]
[312497260,1705933813737,-5.19159307,0.00010462,2]
[312497261,1705933813762,-162.17318871,0.00010463,2]
[312497262,1705933814470,143.41938683,0.00010462,2]
[312497263,1705933814494,11.53412712,0.00010462,2]
[312497264,1705933814936,299.25004149,0.00010462,2]
[312497265,1705933814961,309.65624645,0.00010462,2]
[312497266,1705933814987,102.86655006,0.00010462,2]
[312497267,1705933815943,206.78969639,0.00010462,2]
[312497268,1705933816380,-428.86668697,0.00010462,2]
[312497269,1705933816553,-8.75238137,0.00010462,2]
[312497270,1705933816578,-154.95351395,0.00010462,2]
[312497271,1705933817414,154.95351395,0.00010461,2]
[312497272,1705933818359,110.2072777,0.00010461,2]
[312497273,1705933818383,44.74623625,0.00010461,2]
[312497274,1705933819103,154.95351395,0.00010461,2]
[312497275,1705933829793,-165.15521868,0.0001046,2]
[312497276,1705933829820,-172.03728359,0.00010461,2]
[312497277,1705933829899,-6.88147964,0.00010461,2]
[312497278,1705933830868,154.95351395,0.0001046,2]
[312497279,1705933830968,175.35750868,0.0001046,2]
[312497280,1705933830995,337.19250227,0.0001046,2]
[312497281,1705933831021,337.19250227,0.0001046,2]
[312497349,1705933832992,-53.89074194,0.0001046,2]
[312497351,1705933833002,-2039.05381066,0.00010557,2]
[312497353,1705933833011,-1221.20150745,0.00010557,2]
[312497363,1705933833152,-2152.63192636,0.00010557,2]
[312497364,1705933833164,-370.01801326,0.00010557,2]
[312497367,1705933833174,-1996.48569224,0.00010557,2]
[312497410,1705933833595,-241.29447302,0.00010459,2]
[312497427,1705933833748,-4.924377,0.00010459,2]
[312497533,1705933838590,-167.00483785,0.00010459,2]
[312497535,1705933838599,-977.99536434,0.00010556,2]
[312497537,1705933838609,-2219.84661138,0.00010557,2]
[312497539,1705933838618,-7342.17539028,0.00010557,2]
[312497545,1705933838668,-6377.64674402,0.00010557,2]
[312497547,1705933838678,-1741.02914519,0.00010558,2]
[312497550,1705933838687,-522.11697668,0.00010558,2]
[312497551,1705933838696,-154.95351395,0.00010558,2]
[312497552,1705933838705,-3210.64475181,0.00010558,2]
[312497554,1705933838716,-8802.02455624,0.00010558,2]
[312497557,1705933838729,-3207.5306418,0.00010558,2]
[312497559,1705933838738,-21686.1459775,0.00010558,2]
[312497561,1705933838747,-154.95351395,0.00010558,2]
[312497563,1705933838756,-161.02224773,0.00010558,2]
[312497565,1705933838766,-644.40876473,0.00010558,2]
[312497566,1705933838775,-711.772838,0.00010558,2]
[312497568,1705933838785,-203.88667215,0.00010558,2]
[312497570,1705933838799,-155.15114735,0.00010558,2]
[312497572,1705933838808,-309.81410224,0.00010558,2]
[312497574,1705933838818,-154.95351395,0.00010558,2]
[312497576,1705933838827,-154.95351395,0.00010559,2]
[312497578,1705933838837,-175.22193864,0.00010559,2]
[312497580,1705933838847,-8761.98403332,0.00010559,2]
[312497582,1705933838856,-154.95351395,0.0001056,2]
[312497584,1705933838867,-616.7500659,0.0001056,2]
[312497586,1705933838876,-265.48221302,0.0001056,2]
[312497588,1705933838886,-294.88989743,0.0001056,2]
[312497590,1705933838897,-211.53795191,0.0001056,2]
[312497592,1705933838906,-20874.58230083,0.0001056,2]
[312497594,1705933838915,-18904.87156494,0.0001056,2]
[312497596,1705933838927,-20902.38645894,0.0001056,2]
[312497598,1705933838938,-243.13309117,0.00010561,2]
[312497600,1705933838948,-154.95351395,0.00010561,2]
[312497602,1705933838958,-154.95351395,0.00010561,2]
[312497604,1705933838967,-154.95351395,0.00010561,2]
[312497606,1705933838978,-154.95351395,0.00010561,2]
[312497608,1705933838987,-1242.55121556,0.00010561,2]
[312497610,1705933838997,-154.95351395,0.00010561,2]
[312497612,1705933839006,-154.95351395,0.00010561,2]
[312497614,1705933839016,-526.75292248,0.00010561,2]
[312497616,1705933839027,-301.93072688,0.00010561,2]
[312497618,1705933839037,-154.95351395,0.00010561,2]
[312497620,1705933839052,-213.43652609,0.00010562,2]
[312497622,1705933839061,-154.95351395,0.00010562,2]
[312497624,1705933839071,-199.25222227,0.00010562,2]
[312497626,1705933839081,-588.35431441,0.00010562,2]
[312497628,1705933839090,-561.64006482,0.00010562,2]
[312497630,1705933839100,-1439.19025016,0.00010562,2]
[312497632,1705933839109,-156.02710907,0.00010562,2]
[312497634,1705933839118,-680.10116762,0.00010562,2]
[312497636,1705933839128,-154.95351395,0.00010563,2]
[312497651,1705933839259,-260.87494487,0.00010563,2]
[312497653,1705933839270,-166.67526662,0.00010563,2]
[312497655,1705933839280,-595.13721922,0.00010563,2]
[312497657,1705933839289,-2002.61413331,0.00010563,2]
[312497659,1705933839301,-4813.95392208,0.00010563,2]
[312497661,1705933839310,-2002.61413331,0.00010563,2]
[312497663,1705933839320,-154.95351395,0.00010564,2]
[312497665,1705933839329,-154.95351395,0.00010564,2]
[312497667,1705933839338,-452.74208012,0.00010564,2]
[312497669,1705933839349,-19701.14547142,0.00010564,2]
[312497671,1705933839358,-15915.17297811,0.00010564,2]
[312497673,1705933839367,-19867.27856324,0.00010564,2]
[312497675,1705933839377,-470.67463112,0.00010564,2]
[312497677,1705933839386,-2103.40493137,0.00010564,2]
[312497679,1705933839395,-81207.38465248,0.00010565,2]
[312497681,1705933839406,-2073.9279871,0.00010567,2]
[312497683,1705933839415,-180.71261798,0.00010568,2]
[312497685,1705933839424,-15987.38256896,0.00010571,2]
[312497687,1705933839434,-154.95351395,0.00010674,2]
[312497689,1705933839444,-198.38520512,0.00010683,2]
[312497691,1705933839453,-155.30499422,0.00010683,2]
[312497693,1705933839463,-1294.27151942,0.00010683,2]
[312497695,1705933839472,-276.81672398,0.00010684,2]
[312497697,1705933839481,-243.63569959,0.00010685,2]
[312497699,1705933839491,-185.41016331,0.00010685,2]
[312497701,1705933839500,-2201.9623636,0.00010689,2]
[312497703,1705933839509,-307.60539626,0.00010789,2]
[312497705,1705933839519,-4928.23961202,0.00010834,2]
[312497707,1705933839528,-154.95351395,0.00010837,2]
[312497709,1705933839537,-154.95351395,0.00010838,2]
[312497711,1705933839548,-309.87605268,0.00010838,2]
[312497713,1705933839557,-154.95351395,0.00010935,2]
[312497715,1705933839567,-2836.67729407,0.00010935,2]
[312497717,1705933839577,-200.81357987,0.00010949,2]
[312497719,1705933839587,-156.45218725,0.00010949,2]
[312497721,1705933839597,-262.0085084,0.00010949,2]
[312497723,1705933839608,-176.33707755,0.00010949,2]
[312497725,1705933839618,-309.5529275,0.00010949,2]
[312497726,1705933839628,-298.40677269,0.00010949,2]
[312497728,1705933839639,-193.50366925,0.00010949,2]
[312497730,1705933839650,-155.76848449,0.00010949,2]
[312497732,1705933839660,-155.501055,0.00010949,2]
[312497734,1705933839670,-1816.48615871,0.0001095,2]
[312497736,1705933839680,-200.0,0.00010951,2]
[312497738,1705933839691,-301.40690811,0.00010951,2]
[312497740,1705933839701,-215.98200691,0.00010951,2]
[312497742,1705933839712,-309.51610563,0.00010951,2]
[312497744,1705933839722,-155.25728071,0.00010951,2]
[312497746,1705933839732,-251.17115687,0.00010951,2]
[312497748,1705933839742,-155.09769188,0.00010951,2]
[312497750,1705933839752,-156.06983439,0.00010951,2]
[312497752,1705933839763,-157.90368326,0.00010951,2]
[312497754,1705933839773,-11033.00619666,0.00010951,2]
[312497756,1705933839783,-302.84435405,0.00010951,2]
[312497758,1705933839796,-27575.42293718,0.00010951,2]
[312497760,1705933839808,-3024.16310446,0.00010951,2]
[312497762,1705933839817,-304.11749921,0.00010951,2]
[312497764,1705933839830,-176.80344435,0.00010951,2]
[312497766,1705933839839,-156.33928042,0.00010951,2]
[312497768,1705933839848,-226.39153408,0.00010951,2]
[312497770,1705933839858,-160.36108711,0.00010952,2]
[312497772,1705933839868,-158.96191588,0.00010952,2]
[312497774,1705933839878,-258.88009432,0.00010952,2]
[312497776,1705933839887,-563.75465003,0.00010952,2]
[312497778,1705933839901,-215.305733,0.00011222,2]
[312497780,1705933839911,-877.12356419,0.00011287,2]
[312497782,1705933839920,-186.97198724,0.00011287,2]
[312497784,1705933839930,-154.95351395,0.00011287,2]
[312497786,1705933839941,-717.87855848,0.00011287,2]
[312497788,1705933839950,-161.06319152,0.00011287,2]
[312497790,1705933839959,-282.68327169,0.00011287,2]
[312497792,1705933839968,-174.866365,0.00011287,2]
[312497794,1705933839979,-302.26715568,0.00011287,2]
[312497796,1705933839989,-200.0,0.0001186,2]
[312497797,1705933839998,-175.35139766,0.00012316,2]
[312497800,1705933840008,-155.46165684,0.000129,2]
[312497802,1705933840018,-227.9959918,0.000129,2]
[312497804,1705933840027,-280.0,0.00013046,2]
[312497807,1705933840037,-5181.4298309,0.00013549,2]
[312497809,1705933840053,-154.9690062,0.0001369,2]
[312497811,1705933840062,-158.75094672,0.00013696,2]
[312497813,1705933840073,-282.3442528,0.00013697,2]
[312497815,1705933840082,-297.8194491,0.00013697,2]
[312497817,1705933840091,-1000.0,0.00013698,2]
[312497819,1705933840100,-658.01913901,0.00013698,2]
[312497821,1705933840110,-1507.6392133,0.00013698,2]
[312497823,1705933840119,-3000.0,0.00013699,2]
[312497825,1705933840128,-2570.976819,0.00013699,2]
[312497827,1705933840137,-270.6612929,0.00013699,2]
[312497829,1705933840146,-224.31517419,0.000137,2]
[312497831,1705933840156,-391.0,0.00014351,2]